[Event "Is Bankasi Online Satranc Turn 17-18 YAS"]
[Site "T#646243Mustafa Kemal"]
[Date "2020.05.22"]
[Round "4"]
[White "Alparslanisik80"]
[Black "Omeramirakdag30"]
[Result "1-0"]
[WhiteElo "1750"]
[BlackElo "1940"]
[Annotator "NA RC"]
[PlyCount "151"]
[EventDate "2020.05.22"]
[EventType "swiss (blitz)"]
[TimeControl "180+2"]

1. d4 {[%emt 0:00:03]} Nf6 {[%emt 0:00:01]} 2. c4 {[%emt 0:00:01]} g6 {[%emt 0:00:01]} 3. Nc3 {[%emt 0:00:01]} Bg7 {[%emt 0:00:01]} 4. e4 {[%emt 0:00:01]} d6 {[%emt 0:00:03]} 5. Be2 {[%emt 0:00:00]} O-O {[%emt 0:00:01]} 6. Nf3 {[%emt 0:00:01]} Na6 {[%emt 0:00:02]} 7. O-O {[%emt 0:00:01]} e5 {[%emt 0:00:01]} 8. Re1 {[%emt 0:00:01]} exd4 {[%emt 0:00:10]} 9. Nxd4 {[%emt 0:00:02]} Nc5 {[%emt 0:00:01]} 10. f3 {[%emt 0:00:07]} Re8 {[%emt 0:00:12]} 11. Bg5 {[%emt 0:00:04]} h6 {[%emt 0:00:02]} 12. Bh4 {[%emt 0:00:01]} Be6 {[%emt 0:00:20]} 13. Bf2 {[%emt 0:00:26]} Nh5 {[%emt 0:00:28]} 14. Qd2 {[%emt 0:00:04]} Kh7 {[%emt 0:00:08]} 15. Rad1 {[%emt 0:00:02]} Be5 {[%emt 0:00:01]} 16. g3 {[%emt 0:00:06]} Bg7 {[%emt 0:00:17]} 17. b4 {[%emt 0:00:19]} Nd7 {[%emt 0:00:04]} 18. Kg2 {[%emt 0:00:09]} Re7 {[%emt 0:00:27]} 19. Nd5 {[%emt 0:00:04]} Bxd5 {[%emt 0:00:01]} 20. exd5 {[%emt 0:00:02]} Qe8 {[%emt 0:00:04]} 21. Bd3 {[%emt 0:00:07]} Ne5 {[%emt 0:00:03]} 22. Bf1 {[%emt 0:00:03]} a6 {[%emt 0:00:10]} 23. h3 {[%emt 0:00:09]} Qf8 {[%emt 0:00:13]} 24. f4 {[%emt 0:00:01]} Nd7 {[%emt 0:00:02]} 25. Rxe7 {[%emt 0:00:02]} Qxe7 {[%emt 0:00:00]} 26. Re1 {[%emt 0:00:01]} Qf8 {[%emt 0:00:01]} 27. Qe2 {[%emt 0:00:12]} Nhf6 {[%emt 0:00:02]} 28. Qf3 {[%emt 0:00:03]} Re8 {[%emt 0:00:02]} 29. Rxe8 {[%emt 0:00:03]} Qxe8 {[%emt 0:00:00]} 30. Bd3 {[%emt 0:00:01]} Nf8 {[%emt 0:00:08]} 31. h4 {[%emt 0:00:05]} h5 {[%emt 0:00:04]} 32. f5 {[%emt 0:00:01]} Ng4 {[%emt 0:00:06]} 33. Bg1 {[%emt 0:00:01]} Bh6 {[%emt 0:00:07]} 34. fxg6+ {[%emt 0:00:04]} fxg6 {[%emt 0:00:00]} 35. Be4 {[%emt 0:00:14]} Bg7 {[%emt 0:00:11]} 36. Qd3 {[%emt 0:00:06]} Qe5 {[%emt 0:00:12]} 37. Nf3 {[%emt 0:00:28]} Qb2+ {[%emt 0:00:02]} 38. Kh3 {[%emt 0:00:01]} Bf6 {[%emt 0:00:14]} 39. a3 {[%emt 0:00:21] .} Kg7 {[%emt 0:00:04]} 40. Nd4 {[%emt 0:00:13]} Qc1 {[%emt 0:00:09]} 41. Ne2 {[%emt 0:00:08]} Qb2 {[%emt 0:00:00]} 42. Kg2 {[%emt 0:00:03]} Qe5 {[%emt 0:00:03]} 43. Bd4 {[%emt 0:00:08]} Qe7 {[%emt 0:00:00]} 44. Bf3 {[%emt 0:00:03]} Bxd4 {[%emt 0:00:04]} 45. Nxd4 {[%emt 0:00:01]} Ne3+ {[%emt 0:00:02]} 46. Kf2 {[%emt 0:00:05]} Ng4+ {[%emt 0:00:02]} 47. Bxg4 {[%emt 0:00:07]} hxg4 {[%emt 0:00:00]} 48. Qe3 {[%emt 0:00:01]} Qf6+ {[%emt 0:00:01]} 49. Qf4 {[%emt 0:00:02]} Nd7 {[%emt 0:00:03]} 50. Ke3 {[%emt 0:00:01]} Ne5 {[%emt 0:00:05]} 51. Ne6+ {[%emt 0:00:01]} Kf7 {[%emt 0:00:02]} 52. Ng5+ {[%emt 0:00:02]} Ke7 {[%emt 0:00:01]} 53. c5 {[%emt 0:00:02]} dxc5 {[%emt 0:00:03]} 54. bxc5 {[%emt 0:00:01]} Qxf4+ {[%emt 0:00:01]} 55. Kxf4 {[%emt 0:00:00]} Nd3+ {[%emt 0:00:01]} 56. Kxg4 {[%emt 0:00:01]} Nxc5 {[%emt 0:00:00]} 57. Kf4 {[%emt 0:00:02]} Nd3+ {[%emt 0:00:08]} 58. Ke4 {[%emt 0:00:03]} Nf2+ {[%emt 0:00:01]} 59. Kf3 {[%emt 0:00:01]} Nd3 {[%emt 0:00:02]} 60. Ne4 {[%emt 0:00:01]} c6 {[%emt 0:00:04]} 61. d6+ {[%emt 0:00:01]} Ke6 {[%emt 0:00:01]} 62. g4 {[%emt 0:00:01]} b5 {[%emt 0:00:01]} 63. h5 {[%emt 0:00:01]} gxh5 {[%emt 0:00:01]} 64. gxh5 {[%emt 0:00:00]} Ne5+ {[%emt 0:00:00]} 65. Kf4 {[%emt 0:00:02]} Nf7 {[%emt 0:00:01]} 66. Ng5+ {[%emt 0:00:09]} Nxg5 {[%emt 0:00:05]} 67. Kxg5 {[%emt 0:00:00]} Kxd6 {[%emt 0:00:03]} 68. h6 {[%emt 0:00:01]} c5 {[%emt 0:00:00]} 69. h7 {[%emt 0:00:01]} b4 {[%emt 0:00:00]} 70. axb4 {[%emt 0:00:00]} cxb4 {[%emt 0:00:00]} 71. h8=Q {[%emt 0:00:01]} Kc5 {[%emt 0:00:00]} 72. Kf4 {[%emt 0:00:04]} Kb5 {[%emt 0:00:00]} 73. Ke3 {[%emt 0:00:01]} a5 {[%emt 0:00:01]} 74. Kd2 {[%emt 0:00:02]} Ka4 {[%emt 0:00:00]} 75. Kc2 {[%emt 0:00:05]} Ka3 {[%emt 0:00:01]} 76. Qa1# {[%emt 0:00:02] (Lag: Av=1.22s, max=5.6s)} 1-0

[Event "Is Bankasi Online Satranc Turn 17-18 YAS"]
[Site "T#646243Mustafa Kemal"]
[Date "2020.05.22"]
[Round "4"]
[White "Kemalalpcakir74"]
[Black "Canberkgiray40"]
[Result "0-1"]
[WhiteElo "1741"]
[BlackElo "1711"]
[Annotator "NA RC"]
[PlyCount "62"]
[EventDate "2020.05.22"]
[EventType "swiss (blitz)"]
[TimeControl "180+2"]

1. e4 {[%emt 0:00:10]} e6 {[%emt 0:00:08]} 2. d4 {[%emt 0:00:02]} d5 {[%emt 0:00:01]} 3. exd5 {[%emt 0:00:14]} exd5 {[%emt 0:00:02]} 4. Nf3 {[%emt 0:00:00]} Nf6 {[%emt 0:00:02]} 5. Bd3 {[%emt 0:00:03]} Bd6 {[%emt 0:00:02]} 6. O-O {[%emt 0:00:02]} O-O {[%emt 0:00:01]} 7. h3 {[%emt 0:00:01]} c6 {[%emt 0:00:03]} 8. Nbd2 {[%emt 0:00:05]} Nbd7 {[%emt 0:00:03]} 9. Nb3 {[%emt 0:00:01]} Qc7 {[%emt 0:00:02]} 10. Re1 {[%emt 0:00:04]} Re8 {[%emt 0:00:09]} 11. Rxe8+ {[%emt 0:00:41]} Nxe8 {[%emt 0:00:03]} 12. Be3 {[%emt 0:00:14]} Nef6 {[%emt 0:00:06]} 13. c3 {[%emt 0:00:09]} Nf8 {[%emt 0:00:04]} 14. Qc2 {[%emt 0:00:21]} Bd7 {[%emt 0:00:13]} 15. Bg5 {[%emt 0:00:12]} Be7 {[%emt 0:00:18]} 16. Re1 {[%emt 0:00:14]} Be6 {[%emt 0:00:29]} 17. Nc5 {[%emt 0:00:19]} Bxc5 {[%emt 0:00:12]} 18. Bxf6 {[%emt 0:00:17]} Be7 {[%emt 0:00:09]} 19. Bxe7 {[%emt 0:00:04]} Qxe7 {[%emt 0:00:03]} 20. Ne5 {[%emt 0:00:04]} Qf6 {[%emt 0:00:07]} 21. Kh2 {[%emt 0:00:15]} Ng6 {[%emt 0:00:12]} 22. Nxg6 {[%emt 0:00:02]} hxg6 {[%emt 0:00:02]} 23. Re3 {[%emt 0:00:03]} Re8 {[%emt 0:00:13]} 24. Rf3 {[%emt 0:00:02]} Qg5 {[%emt 0:00:03]} 25. Rg3 {[%emt 0:00:04]} Qf4 {[%emt 0:00:12]} 26. Kg1 {[%emt 0:00:05]} Bd7 {[%emt 0:00:10]} 27. Qd1 {[%emt 0:00:02]} Bf5 {[%emt 0:00:15]} 28. Bxf5 {[%emt 0:00:02]} Qxf5 {[%emt 0:00:04]} 29. Qd3 {[%emt 0:00:02]} Re1+ {[%emt 0:00:03]} 30. Kh2 {[%emt 0:00:01]} Qxf2 {[%emt 0:00:04]} 31. Qf3 {[%emt 0:00:03]} Qg1# {[%emt 0:00:02] (Lag: Av=0.53s, max=0.9s)} 0-1

[Event "Is Bankasi Online Satranc Turn 17-18 YAS"]
[Site "T#646243Mustafa Kemal"]
[Date "2020.05.22"]
[Round "4"]
[White "Ahmetemreoztur80"]
[Black "Ibrahimisik76"]
[Result "1-0"]
[WhiteElo "1711"]
[BlackElo "1529"]
[Annotator "NA RC"]
[PlyCount "105"]
[EventDate "2020.05.22"]
[EventType "swiss (blitz)"]
[TimeControl "180+2"]

1. d4 {[%emt 0:00:05]} d5 {[%emt 0:00:02]} 2. c4 {[%emt 0:00:01]} e6 {[%emt 0:00:02]} 3. Nc3 {[%emt 0:00:02]} c6 {[%emt 0:00:01]} 4. Nf3 {[%emt 0:00:02]} Ne7 {[%emt 0:00:01]} 5. Bf4 {[%emt 0:00:01]} Ng6 {[%emt 0:00:02]} 6. Bg3 {[%emt 0:00:01]} Nd7 {[%emt 0:00:01]} 7. e3 {[%emt 0:00:02]} Be7 {[%emt 0:00:01]} 8. Bd3 {[%emt 0:00:06]} f5 {[%emt 0:00:02]} 9. O-O {[%emt 0:00:08]} O-O {[%emt 0:00:02]} 10. Rc1 {[%emt 0:00:11]} Nf6 {[%emt 0:00:02]} 11. Ne5 {[%emt 0:00:09]} Nxe5 {[%emt 0:00:02]} 12. Bxe5 {[%emt 0:00:00]} Bd6 {[%emt 0:00:05]} 13. Bxd6 {[%emt 0:00:04]} Qxd6 {[%emt 0:00:02]} 14. cxd5 {[%emt 0:00:06]} exd5 {[%emt 0:00:05]} 15. Qc2 {[%emt 0:00:08]} Ne4 {[%emt 0:00:03]} 16. f3 {[%emt 0:00:13]} Nxc3 {[%emt 0:00:02]} 17. bxc3 {[%emt 0:00:00]} Bd7 {[%emt 0:00:07]} 18. c4 {[%emt 0:00:07]} Rae8 {[%emt 0:00:09]} 19. Rfe1 {[%emt 0:00:03]} a6 {[%emt 0:00:11]} 20. Qb3 {[%emt 0:00:07]} Bc8 {[%emt 0:00:26]} 21. cxd5 {[%emt 0:00:12]} cxd5 {[%emt 0:00:07]} 22. Rc5 {[%emt 0:00:03]} Rd8 {[%emt 0:00:07]} 23. Rec1 {[%emt 0:00:09]} h6 {[%emt 0:00:24]} 24. e4 {[%emt 0:00:29]} fxe4 {[%emt 0:00:10]} 25. fxe4 {[%emt 0:00:00]} Qf4 {[%emt 0:00:05] '} 26. exd5 {[%emt 0:00:18]} Qf2+ {[%emt 0:00:00]} 27. Kh1 {[%emt 0:00:01]} Qf4 {[%emt 0:00:00]} 28. d6+ {[%emt 0:00:03]} Kh8 {[%emt 0:00:13]} 29. Rc7 {[%emt 0:00:50]} Qxd6 {[%emt 0:00:32]} 30. Bb1 {[%emt 0:00:16]} Qxd4 {[%emt 0:00:05]} 31. Qg3 {[%emt 0:00:04]} Qf6 {[%emt 0:00:09]} 32. h3 {[%emt 0:00:03]} b5 {[%emt 0:00:12]} 33. Qb3 {[%emt 0:00:02]} Be6 {[%emt 0:00:05]} 34. Qc2 {[%emt 0:00:00]} Bf5 {[%emt 0:00:08]} 35. Qxf5 {[%emt 0:00:02]} Qxf5 {[%emt 0:00:01]} 36. Bxf5 {[%emt 0:00:00]} Rxf5 {[%emt 0:00:01]} 37. R7c6 {[%emt 0:00:01]} Rf6 {[%emt 0:00:04]} 38. Rc7 {[%emt 0:00:03]} Ra8 {[%emt 0:00:07]} 39. Rb7 {[%emt 0:00:01]} Rd8 {[%emt 0:00:04]} 40. Rcc7 {[%emt 0:00:02]} Rg8 {[%emt 0:00:02]} 41. Ra7 {[%emt 0:00:05]} Kh7 {[%emt 0:00:03]} 42. Rc3 {[%emt 0:00:04]} Re8 {[%emt 0:00:04]} 43. Ra3 {[%emt 0:00:01]} Ree6 {[%emt 0:00:04]} 44. Kh2 {[%emt 0:00:02]} Kg6 {[%emt 0:00:01]} 45. Rg3+ {[%emt 0:00:02]} Kh7 {[%emt 0:00:01]} 46. Rgxg7+ {[%emt 0:00:02]} Kh8 {[%emt 0:00:02]} 47. Rh7+ {[%emt 0:00:01]} Kg8 {[%emt 0:00:01]} 48. Rhg7+ {[%emt 0:00:01]} Kf8 {[%emt 0:00:01]} 49. Rh7 {[%emt 0:00:01]} Kg8 {[%emt 0:00:01]} 50. Rhb7 {[%emt 0:00:01]} Rf8 {[%emt 0:00:03]} 51. Rg7+ {[%emt 0:00:02]} Kh8 {[%emt 0:00:03]} 52. Rh7+ {[%emt 0:00:00]} Kg8 {[%emt 0:00:01]} 53. Rag7# {[%emt 0:00:00] (Lag: Av=2.37s, max=88.9s)} 1-0

[Event "Is Bankasi Online Satranc Turn 17-18 YAS"]
[Site "T#646243Mustafa Kemal"]
[Date "2020.05.22"]
[Round "4"]
[White "Furkancan12"]
[Black "Kayrakamer68"]
[Result "0-1"]
[WhiteElo "1711"]
[BlackElo "1750"]
[Annotator "NA RC"]
[PlyCount "64"]
[EventDate "2020.05.22"]
[EventType "swiss (blitz)"]
[TimeControl "180+2"]

1. d4 {[%emt 0:00:07]} Nf6 {[%emt 0:00:02]} 2. Nf3 {[%emt 0:00:02]} g6 {[%emt 0:00:01]} 3. Nbd2 {[%emt 0:00:01]} Bg7 {[%emt 0:00:03]} 4. e4 {[%emt 0:00:01]} d6 {[%emt 0:00:01]} 5. Bd3 {[%emt 0:00:01]} O-O {[%emt 0:00:01]} 6. O-O {[%emt 0:00:01]} c5 {[%emt 0:00:00]} 7. c3 {[%emt 0:00:01]} cxd4 {[%emt 0:00:03]} 8. cxd4 {[%emt 0:00:00]} Nc6 {[%emt 0:00:01]} 9. a3 {[%emt 0:00:01]} Bg4 {[%emt 0:00:04]} 10. h3 {[%emt 0:00:01]} Bxf3 {[%emt 0:00:04]} 11. Nxf3 {[%emt 0:00:00]} Rc8 {[%emt 0:00:02]} 12. Re1 {[%emt 0:00:07]} Nd7 {[%emt 0:00:03]} 13. Be3 {[%emt 0:00:06]} a6 {[%emt 0:00:04]} 14. Rc1 {[%emt 0:00:01]} Qa5 {[%emt 0:00:08]} 15. Qe2 {[%emt 0:00:25]} Qb6 {[%emt 0:00:11]} 16. d5 {[%emt 0:00:10]} Nd4 {[%emt 0:00:03]} 17. Nxd4 {[%emt 0:00:02]} Bxd4 {[%emt 0:00:00]} 18. Bxd4 {[%emt 0:00:14]} Qxd4 {[%emt 0:00:00]} 19. Bb1 {[%emt 0:00:34]} Ne5 {[%emt 0:00:10]} 20. Red1 {[%emt 0:00:03]} Qb6 {[%emt 0:00:05]} 21. Kh2 {[%emt 0:00:24]} Qb3 {[%emt 0:00:54]} 22. f4 {[%emt 0:00:49]} Nd7 {[%emt 0:00:06]} 23. Rxc8 {[%emt 0:00:08]} Rxc8 {[%emt 0:00:02]} 24. Rd3 {[%emt 0:00:00]} Qa4 {[%emt 0:00:19]} 25. Qg4 {[%emt 0:00:04]} Rc1 {[%emt 0:00:38]} 26. b3 {[%emt 0:00:01]} Qxe4 {[%emt 0:00:07]} 27. Qxd7 {[%emt 0:00:23]} Rxb1 {[%emt 0:00:02]} 28. Rf3 {[%emt 0:00:01]} b5 {[%emt 0:00:20]} 29. f5 {[%emt 0:00:01]} Qe5+ {[%emt 0:00:04]} 30. Rg3 {[%emt 0:00:01]} Rxb3 {[%emt 0:00:05]} 31. Qc8+ {[%emt 0:00:06]} Kg7 {[%emt 0:00:02]} 32. f6+ {[%emt 0:00:01]} exf6 {[%emt 0:00:01] Furkancan12 terk eder (Lag: Av=0.26s, max=0.6s)} 0-1

[Event "Is Bankasi Online Satranc Turn 17-18 YAS"]
[Site "T#646243Mustafa Kemal"]
[Date "2020.05.22"]
[Round "4"]
[White "Dogukangureke78"]
[Black "emreerdal60"]
[Result "1-0"]
[WhiteElo "1686"]
[BlackElo "1722"]
[Annotator "NA RC"]
[PlyCount "63"]
[EventDate "2020.05.22"]
[EventType "swiss (blitz)"]
[TimeControl "180+2"]

1. d4 {[%emt 0:00:05]} d5 {[%emt 0:00:01]} 2. c4 {[%emt 0:00:02]} e6 {[%emt 0:00:01]} 3. g3 {[%emt 0:00:02]} Nf6 {[%emt 0:00:01]} 4. Nf3 {[%emt 0:00:01]} Be7 {[%emt 0:00:01]} 5. Bg2 {[%emt 0:00:01]} O-O {[%emt 0:00:01]} 6. O-O {[%emt 0:00:01]} c6 {[%emt 0:00:05]} 7. Nc3 {[%emt 0:00:03]} Nbd7 {[%emt 0:00:10]} 8. Nd2 {[%emt 0:00:02]} Qc7 {[%emt 0:00:09]} 9. e4 {[%emt 0:00:05]} dxe4 {[%emt 0:00:05]} 10. Ndxe4 {[%emt 0:00:00]} e5 {[%emt 0:00:03]} 11. d5 {[%emt 0:00:26]} cxd5 {[%emt 0:00:05]} 12. cxd5 {[%emt 0:00:00]} Nxe4 {[%emt 0:00:14]} 13. Nxe4 {[%emt 0:00:17]} Bd6 {[%emt 0:00:03]} 14. Be3 {[%emt 0:00:17]} f5 {[%emt 0:00:15]} 15. Rc1 {[%emt 0:00:07]} Qb8 {[%emt 0:00:07]} 16. Nxd6 {[%emt 0:00:02]} Qxd6 {[%emt 0:00:01]} 17. f4 {[%emt 0:00:21]} e4 {[%emt 0:00:10]} 18. Qd4 {[%emt 0:00:12]} b6 {[%emt 0:00:10]} 19. Rc6 {[%emt 0:00:07]} Qe7 {[%emt 0:00:18]} 20. Rc7 {[%emt 0:00:15]} Ba6 {[%emt 0:00:17]} 21. Rfc1 {[%emt 0:00:02]} Rac8 {[%emt 0:00:02]} 22. d6 {[%emt 0:00:03]} Qe6 {[%emt 0:00:10]} 23. Rxa7 {[%emt 0:00:26]} Rxc1+ {[%emt 0:00:20]} 24. Bxc1 {[%emt 0:00:00]} Rc8 {[%emt 0:00:05]} 25. Bd2 {[%emt 0:00:03]} Bb5 {[%emt 0:00:14]} 26. Bc3 {[%emt 0:00:02]} Nf6 {[%emt 0:00:10]} 27. Qxb6 {[%emt 0:00:08]} Qc4 {[%emt 0:00:15]} 28. Qb7 {[%emt 0:00:08]} Qc5+ {[%emt 0:00:13]} 29. Kh1 {[%emt 0:00:07]} Ne8 {[%emt 0:00:03]} 30. d7 {[%emt 0:00:06]} Rc7 {[%emt 0:00:09]} 31. dxe8=Q+ {[%emt 0:00:02]} Bxe8 {[%emt 0:00:03]} 32. Qxc7 {[%emt 0:00:02] emreerdal60 resigns (Lag: Av=0.71s, max=1.3s)} 1-0

[Event "Is Bankasi Online Satranc Turn 17-18 YAS"]
[Site "T#646243Mustafa Kemal"]
[Date "2020.05.22"]
[Round "4"]
[White "Ibrahimsunguro94"]
[Black "Ataberkturkmen48"]
[Result "0-1"]
[WhiteElo "1686"]
[BlackElo "1658"]
[Annotator "NA RC"]
[PlyCount "46"]
[EventDate "2020.05.22"]
[EventType "swiss (blitz)"]
[TimeControl "180+2"]

1. d4 {[%emt 0:00:05]} Nf6 {[%emt 0:00:01]} 2. c4 {[%emt 0:00:02]} e6 {[%emt 0:00:01]} 3. Nc3 {[%emt 0:00:06]} Bb4 {[%emt 0:00:02]} 4. Nf3 {[%emt 0:00:08]} b6 {[%emt 0:00:01]} 5. e3 {[%emt 0:00:04]} Bb7 {[%emt 0:00:01]} 6. Bd3 {[%emt 0:00:01]} O-O {[%emt 0:00:01]} 7. O-O {[%emt 0:00:01]} Bxc3 {[%emt 0:00:01]} 8. bxc3 {[%emt 0:00:03]} d6 {[%emt 0:00:00]} 9. Re1 {[%emt 0:00:05]} Ne4 {[%emt 0:00:11]} 10. Qc2 {[%emt 0:00:05]} f5 {[%emt 0:00:01]} 11. Nd2 {[%emt 0:00:19]} Nxd2 {[%emt 0:00:02]} 12. Bxd2 {[%emt 0:00:00]} Qg5 {[%emt 0:00:27]} 13. e4 {[%emt 0:00:06]} Qg6 {[%emt 0:00:04]} 14. g3 {[%emt 0:00:23]} f4 {[%emt 0:00:19]} 15. e5 {[%emt 0:00:26]} Qh5 {[%emt 0:00:03]} 16. Bf1 {[%emt 0:00:01]} fxg3 {[%emt 0:00:11]} 17. fxg3 {[%emt 0:00:42]} Qf3 {[%emt 0:00:08]} 18. Bf4 {[%emt 0:00:05]} Qh1+ {[%emt 0:00:13]} 19. Kf2 {[%emt 0:00:03]} Qxh2+ {[%emt 0:00:01]} 20. Ke3 {[%emt 0:00:39]} Qxc2 {[%emt 0:00:04]} 21. Bd3 {[%emt 0:00:03]} Qg2 {[%emt 0:00:08]} 22. Rf1 {[%emt 0:00:16]} dxe5 {[%emt 0:00:04]} 23. Bxe5 {[%emt 0:00:02]} Nd7 {[%emt 0:00:03] Zaman (Lag: Av=0.60s, max=2.3s)} 0-1

[Event "Is Bankasi Online Satranc Turn 17-18 YAS"]
[Site "T#646243Mustafa Kemal"]
[Date "2020.05.22"]
[Round "4"]
[White "Tarikemretay96"]
[Black "keremerdal34"]
[Result "0-1"]
[WhiteElo "1630"]
[BlackElo "1658"]
[Annotator "NA RC"]
[PlyCount "132"]
[EventDate "2020.05.22"]
[EventType "swiss (blitz)"]
[TimeControl "180+2"]

1. d4 {[%emt 0:00:04]} d5 {[%emt 0:00:01]} 2. Nf3 {[%emt 0:00:02]} Nf6 {[%emt 0:00:01]} 3. Bf4 {[%emt 0:00:01]} Bf5 {[%emt 0:00:03]} 4. e3 {[%emt 0:00:01]} e6 {[%emt 0:00:02]} 5. Bd3 {[%emt 0:00:01]} Bg6 {[%emt 0:00:05]} 6. Ne5 {[%emt 0:00:13]} Nbd7 {[%emt 0:00:18]} 7. Nxg6 {[%emt 0:00:17]} hxg6 {[%emt 0:00:06]} 8. Nd2 {[%emt 0:00:01]} c5 {[%emt 0:00:07]} 9. c3 {[%emt 0:00:04]} c4 {[%emt 0:00:07]} 10. Bc2 {[%emt 0:00:06]} Nb6 {[%emt 0:00:03]} 11. Ba4+ {[%emt 0:00:06]} Nxa4 {[%emt 0:00:09]} 12. Qxa4+ {[%emt 0:00:00]} Qd7 {[%emt 0:00:05]} 13. Qxd7+ {[%emt 0:00:03]} Kxd7 {[%emt 0:00:02]} 14. h3 {[%emt 0:00:15]} Bd6 {[%emt 0:00:05]} 15. Bxd6 {[%emt 0:00:02]} Kxd6 {[%emt 0:00:01]} 16. O-O-O {[%emt 0:00:11]} b5 {[%emt 0:00:06]} 17. b3 {[%emt 0:00:14]} a5 {[%emt 0:00:07]} 18. Rhe1 {[%emt 0:00:21]} Rhc8 {[%emt 0:00:43]} 19. Kb2 {[%emt 0:00:09]} b4 {[%emt 0:00:31]} 20. bxc4 {[%emt 0:00:30]} dxc4 {[%emt 0:00:05]} 21. e4 {[%emt 0:00:06]} Ke7 {[%emt 0:00:19]} 22. d5 {[%emt 0:00:24]} exd5 {[%emt 0:00:13]} 23. exd5+ {[%emt 0:00:00]} Kf8 {[%emt 0:00:01]} 24. Ne4 {[%emt 0:00:10]} Nd7 {[%emt 0:00:21]} 25. d6 {[%emt 0:00:05]} Nc5 {[%emt 0:00:03]} 26. Nxc5 {[%emt 0:00:01]} Rxc5 {[%emt 0:00:01]} 27. d7 {[%emt 0:00:02]} Rd8 {[%emt 0:00:01]} 28. Re2 {[%emt 0:00:11]} Rc7 {[%emt 0:00:01]} 29. Red2 {[%emt 0:00:03]} Ke7 {[%emt 0:00:02]} 30. Re1+ {[%emt 0:00:07]} Kf8 {[%emt 0:00:04]} 31. Red1 {[%emt 0:00:01]} f6 {[%emt 0:00:04]} 32. Rd5 {[%emt 0:00:03]} Kf7 {[%emt 0:00:04]} 33. Rxa5 {[%emt 0:00:01]} Rcxd7 {[%emt 0:00:01]} 34. Rxd7+ {[%emt 0:00:01]} Rxd7 {[%emt 0:00:00]} 35. cxb4 {[%emt 0:00:06]} Rd2+ {[%emt 0:00:01]} 36. Kc3 {[%emt 0:00:01]} Rxf2 {[%emt 0:00:01]} 37. Kxc4 {[%emt 0:00:04]} Rxg2 {[%emt 0:00:01]} 38. b5 {[%emt 0:00:02]} Ke6 {[%emt 0:00:02]} 39. Kc5 {[%emt 0:00:04]} Rc2+ {[%emt 0:00:03]} 40. Kb6 {[%emt 0:00:02]} Kd6 {[%emt 0:00:03]} 41. Ka7 {[%emt 0:00:02]} Rc7+ {[%emt 0:00:02]} 42. Ka8 {[%emt 0:00:02]} Rc8+ {[%emt 0:00:02]} 43. Ka7 {[%emt 0:00:02]} Rc7+ {[%emt 0:00:01]} 44. Ka6 {[%emt 0:00:01]} Rc8 {[%emt 0:00:06]} 45. b6 {[%emt 0:00:01]} Ra8+ {[%emt 0:00:03]} 46. Kb5 {[%emt 0:00:01]} Rb8 {[%emt 0:00:03]} 47. Ra7 {[%emt 0:00:03]} f5 {[%emt 0:00:01]} 48. Ka6 {[%emt 0:00:04]} Kc6 {[%emt 0:00:04]} 49. b7 {[%emt 0:00:04]} f4 {[%emt 0:00:02]} 50. a4 {[%emt 0:00:04]} f3 {[%emt 0:00:01]} 51. Ra8 {[%emt 0:00:01]} Rxb7 {[%emt 0:00:02]} 52. Rf8 {[%emt 0:00:01]} Rb4 {[%emt 0:00:02]} 53. Ka7 {[%emt 0:00:02]} Rxa4+ {[%emt 0:00:01]} 54. Kb8 {[%emt 0:00:01]} Rb4+ {[%emt 0:00:02]} 55. Kc8 {[%emt 0:00:02]} Rb3 {[%emt 0:00:04]} 56. Kd8 {[%emt 0:00:02]} Kd6 {[%emt 0:00:01]} 57. Ke8 {[%emt 0:00:03]} Rb8+ {[%emt 0:00:02]} 58. Kf7 {[%emt 0:00:02]} Rxf8+ {[%emt 0:00:00]} 59. Kxf8 {[%emt 0:00:00]} f2 {[%emt 0:00:01]} 60. Kxg7 {[%emt 0:00:01]} f1=Q {[%emt 0:00:00]} 61. Kxg6 {[%emt 0:00:00]} Qxh3 {[%emt 0:00:01]} 62. Kg7 {[%emt 0:00:01]} Qf5 {[%emt 0:00:03]} 63. Kg8 {[%emt 0:00:01]} Qd7 {[%emt 0:00:01]} 64. Kh8 {[%emt 0:00:03]} Ke6 {[%emt 0:00:01]} 65. Kg8 {[%emt 0:00:01]} Kf6 {[%emt 0:00:01]} 66. Kh8 {[%emt 0:00:01]} Qg7# {[%emt 0:00:01] (Lag: Av=0.98s, max=1.4s) Tarikemretay96 terk eder} 0-1